Cogmind - Beta 15 @@@ ROGUE MODE // 2025.08.08 @ 20:31:00 Player: shapeshifter Result: Destroyed by G-50 Soldier with Heavy Laser Performance ------------- Evolutions (5) 2500 Regions Visited (5) 1000 Robots Destroyed (0) 0 Value Destroyed (0) 0 Prototype IDs (6) 120 Alien Tech Used (0) 0 Bonus (1232) 1232 TOTAL SCORE: 4852 Bonus ------- Pacifist 932 Registered with UFD 300 Cogmind --------- Core Integrity 0/1000 Matter 271/300 Energy 99/100 System Corruption 4% Temperature Cool (9) Movement Core (50) Location -5/Factory Parts ------- > --- POWER (2) -------- (None) > --- PROPULSION (7) --- (None) > --- UTILITY (6) ------ Signal Interpreter > --- WEAPON (2) ------- (None) > --- INVENTORY (5) ---- Light Nuclear Core Power Amplifier Small Storage Unit Improved Transmission Jammer Improved Plasma Cutter Peak State ------------ > --- POWER ------------ Light Ion Engine Light Ion Engine > --- PROPULSION ------- Flight Unit Flight Unit > --- UTILITY ---------- Enhanced Optical Array Signal Interpreter Advanced Signal Interpreter IFF Parser 0b10 Decoder Chip [Scout] EM Shield > --- WEAPON ----------- (None) > --- INVENTORY -------- Power Amplifier Small Storage Unit Improved Transmission Jammer Improved Plasma Cutter Improved Plasma Cutter [Rating: 32] Favorites ----------- Power Light Ion Engine Engine Light Ion Engine Propulsion Flight Unit Flight Unit Flight Unit Utility Signal Interpreter Device IFF Parser Processor Signal Interpreter Weapon Improved Plasma Cutter Special Weapon Improved Plasma Cutter Build | -11 -10 -10 -9 -6 -5 ------- Run | Yrd Mat Sub Scr Fac Fac Slots Evolved 10 | . . . . 8 2 Power 1 | . . . . 1 . Propulsion 5 | . . . . 4 1 Utility 4 | . . . . 3 1 Weapon . | . . . . . . Parts Attached 15 | . 2 . 4 3 6 Power 3 | . 1 . 1 . 1 Engine 3 | . 1 . 1 . 1 Core . | . . . . . . Reactor . | . . . . . . Propulsion 5 | . 1 . 1 . 3 Treads . | . . . . . . Leg . | . . . . . . Wheel . | . . . . . . Hover . | . . . . . . Flight 5 | . 1 . 1 . 3 Utility 6 | . . . 2 3 1 Device 2 | . . . . 2 . Storage . | . . . . . . Processor 4 | . . . 2 1 1 Hackware . | . . . . . . Protection . | . . . . . . Artifact . | . . . . . . Weapon 1 | . . . . . 1 Energy Gun . | . . . . . . Energy Cannon . | . . . . . . Ballistic Gun . | . . . . . . Ballistic Cannon . | . . . . . . Launcher . | . . . . . . Special Weapon 1 | . . . . . 1 Impact Weapon . | . . . . . . Slashing Weapon . | . . . . . . Piercing Weapon . | . . . . . . Special Melee Weapon . | . . . . . . Unidentified Prototypes . | . . . . . . Parts Lost 12 | . 1 . . . 11 Power 2 | . 1 . . . 1 Propulsion 5 | . . . . . 5 Utility 4 | . . . . . 4 Weapon 1 | . . . . . 1 Highest Loss Streak 7 | . 1 . . . 7 To Critical Strikes . | . . . . . . Average Backups 3 | 1 2 2 2 3 4 Power . | 1 1 1 . 1 . Propulsion . | . . . . 1 . Utility 1 | . 1 1 1 1 2 Weapon . | . . . . . . Tool/Special . | . . . . . . Unused Backups 5 | . . . . . 5 Power 1 | . . . . . 1 Propulsion . | . . . . . . Utility 3 | . . . . . 3 Weapon . | . . . . . . Tool/Special 1 | . . . . . 1 Average Slot Usage (%) 30 | . 9 14 36 37 35 Engine 5 | . 5 . 5 6 5 Flight 10 | . 4 14 19 13 7 Device 2 | . . . . 2 4 Processor 11 | . . . 11 15 15 Peak Build Rating 32 | . 2 1 10 21 32 Average Rating 11 | . . 1 5 14 19 On Entrance 5 | . . 1 1 10 21 Naked Turns 47 | . 47 . . . . Heaviest Build 8 | . 3 . 3 4 8 Greatest Support 12 | 3 4 4 8 8 12 Greatest Overweight (x) . | . . . . . . Average Overweight (x) . | . . . . . . Largest Inventory Capacity 5 | 5 5 5 5 5 5 Average Capacity 5 | 5 5 5 5 5 5 Most Carried 5 | 3 3 2 4 5 5 Average Carried 3 | 2 2 2 2 4 4 Final Capacity 5 | 5 5 5 5 5 5 Final Carried 5 | 3 2 2 3 5 5 Class Distribution -------------------- 86% | Mutant 13% | Derelict-Mutant Dominant Class ---------------- Mutant | -10/Materials Mutant | -10/Subcaves Mutant | -9/Scraptown Mutant | -6/Factory Mutant | -5/Factory Resources | -11 -10 -10 -9 -6 -5 ----------- Run | Yrd Mat Sub Scr Fac Fac Matter Collected 281 | 200 . . 45 . 36 Remotely . | . . . . . . Salvage Created . | . . . . . . Parts . | . . . . . . Haulers Intercepted . | . . . . . . Recyclers Shooed . | . . . . . . Parts Field Recycled . | . . . . . . Retrieved Matter . | . . . . . . Parts Self-Destructed . | . . . . . . Prevented . | . . . . . . Kills | -11 -10 -10 -9 -6 -5 ------- Run | Yrd Mat Sub Scr Fac Fac Combat Hostiles Destroyed . | . . . . . . Classes Destroyed . | . . . . . . Best Kill Streak . | . . . . . . Combat Bots Only . | . . . . . . Max Kills in Single Turn . | . . . . . . Gunslinging . | . . . . . . Exploded . | . . . . . . Melee . | . . . . . . Uniques/NPCs Destroyed . | . . . . . . Combat | -11 -10 -10 -9 -6 -5 -------- Run | Yrd Mat Sub Scr Fac Fac Hostile Shots Fired 206 | . 46 . . 15 145 Missed 91 | . 17 . . 9 65 Hits 115 | . 29 . . 6 80 Melee 1 | . . . . . 1 Projectile 114 | . 29 . . 6 79 Critical Strikes 2 | . . . . . 2 Damage Taken 1615 | . 255 . . 36 1324 Core 1199 | . 198 . . . 1001 Absorbed by Shields . | . . . . . . Core Remaining (%) 73 | 100 . . 20 100 . Volleys Fired 2 | . . . . . 2 Largest 1 | . . . . . 1 Hottest 20 | . . . . . 20 Shots Fired 2 | . . . . . 2 Gun . | . . . . . . Cannon . | . . . . . . Launcher . | . . . . . . Special 2 | . . . . . 2 Kinetic . | . . . . . . Thermal 2 | . . . . . 2 Explosive . | . . . . . . Electromagnetic . | . . . . . . Robot Hit Streak . | . . . . . . Robot Miss Streak . | . . . . . . Penetration Max . | . . . . . . Secondary Targets . | . . . . . . Shots Hit Robots . | . . . . . . Core Hits . | . . . . . . Critical Kills . | . . . . . . Critical Parts Destroyed . | . . . . . . Critical Strikes . | . . . . . . Melee Attacks . | . . . . . . Impact . | . . . . . . Slashing . | . . . . . . Piercing . | . . . . . . Sneak Attacks . | . . . . . . Combat Hostiles . | . . . . . . Follow-up Attacks . | . . . . . . Damage Inflicted . | . . . . . . Guns . | . . . . . . Cannons . | . . . . . . Explosions . | . . . . . . Melee . | . . . . . . Ramming . | . . . . . . Kinetic . | . . . . . . Thermal . | . . . . . . Explosive . | . . . . . . Electromagnetic . | . . . . . . Impact . | . . . . . . Slashing . | . . . . . . Piercing . | . . . . . . Highest Corruption 4 | . . . . 1 4 Average Corruption 2 | . . . . 1 2 Corruption Purged . | . . . . . . Corruption Blocked . | . . . . . . Effects 3 | . . . . . 3 Message Errors 1 | . . . . . 1 Parts Rejected 1 | . . . . . 1 Data Loss (minor) 1 | . . . . . 1 Overload Shots . | . . . . . . Overflow Damage . | . . . . . . Projectiles . | . . . . . . Explosions . | . . . . . . Melee . | . . . . . . Knockbacks . | . . . . . . Impact . | . . . . . . Kinetic . | . . . . . . Secondary . | . . . . . . Self-Inflicted Damage . | . . . . . . Shots . | . . . . . . Rammed . | . . . . . . Targets Rammed . | . . . . . . Kicked . | . . . . . . Crushed . | . . . . . . Highest Temperature . | . . . . . . Average Temperature . | . . . . . . Received Heat Transfer 138 | . 36 . . . 102 Siege Activations . | . . . . . . Martial Activations . | . . . . . . Shielding Activations . | . . . . . . Robots Disrupted . | . . . . . . Combat Hostiles . | . . . . . . Robots Corrupted . | . . . . . . Combat Hostiles . | . . . . . . Parts Fried . | . . . . . . Impact Corruptions . | . . . . . . Robots Melted . | . . . . . . Combat Hostiles . | . . . . . . Parts Melted . | . . . . . . Heat Transferred . | . . . . . . Parts Sabotaged . | . . . . . . Parts Stolen . | . . . . . . Parts Stripped . | . . . . . . Power Chain Reactions . | . . . . . . Alert | -11 -10 -10 -9 -6 -5 ------- Run | Yrd Mat Sub Scr Fac Fac Maximum Alert Level . | . . . . . . Low Security (%) 100 | 100 100 . . 100 100 Level 1 . | . . . . . . Level 2 . | . . . . . . Level 3 . | . . . . . . Level 4 . | . . . . . . Level 5 . | . . . . . . High Security . | . . . . . . Max Security . | . . . . . . Peak Influence 96 | . . . . 15 96 Initial . | . . . . . . Average 21 | . . . . 2 36 Influence Increases 271 | . . . . 15 256 Successful Hack 61 | . . . . . 61 Partial Spotted 30 | . . . . 15 15 Lose Combat Pursuer 180 | . . . . . 180 Influence Decreases 235 | . . . . 15 220 Time Decay 125 | . . . . 15 110 Lost Part 110 | . . . . . 110 Squads Dispatched 6 | . 1 . . 2 3 Investigation 3 | . . . . 1 2 Extermination . | . . . . . . Reinforcement 3 | . 1 . . 1 1 Assault . | . . . . . . Garrison . | . . . . . . Intercept . | . . . . . . Searches Triggered . | . . . . . . Construction Impeded . | . . . . . . Haulers Reinforced . | . . . . . . Active Scanning Responses . | . . . . . . Cargo Convoy Interrupts . | . . . . . . Stealth | -11 -10 -10 -9 -6 -5 --------- Run | Yrd Mat Sub Scr Fac Fac Distress Signals . | . . . . . . Communications Jammed . | . . . . . . Distress Signals . | . . . . . . Times Spotted 38 | . 6 . . 3 29 Peak Tracking Total 15 | . 6 . . 3 15 Tactical Retreats 7 | . . . . . 7 Traps | -11 -10 -10 -9 -6 -5 ------- Run | Yrd Mat Sub Scr Fac Fac Traps Triggered 1 | . . . . . 1 Indirectly . | . . . . . . Trap Hack Attempts . | . . . . . . Triggered . | . . . . . . Disarmed . | . . . . . . Reprogrammed . | . . . . . . Reused . | . . . . . . Traps Extracted . | . . . . . . Installed . | . . . . . . Triggered . | . . . . . . Machines | -11 -10 -10 -9 -6 -5 ---------- Run | Yrd Mat Sub Scr Fac Fac Machines Disabled . | . . . . . . Max in Single Turn . | . . . . . . Machines Repaired . | . . . . . . Machines Dismantled . | . . . . . . Machines Sabotaged . | . . . . . . Overloaded Fab Kills . | . . . . . . Hacking | -11 -10 -10 -9 -6 -5 --------- Run | Yrd Mat Sub Scr Fac Fac Machines Accessed 7 | . . . 1 1 5 Terminals 6 | . . . . 1 5 Fabricators . | . . . . . . Repair Stations . | . . . . . . Recycling Units . | . . . . . . Scanalyzers . | . . . . . . Garrison Access . | . . . . . . Total Hacks 36 | . . . 19 3 14 Successful 25 | . . . 19 1 5 Failed 11 | . . . . 2 9 Catastrophic 5 | . . . . 1 4 Database Lockouts . | . . . . . . Manual 13 | . . . . 3 10 Terminals 17 | . . . . 3 14 Fabricators . | . . . . . . Repair Stations . | . . . . . . Recycling Units . | . . . . . . Scanalyzers . | . . . . . . Garrison Access . | . . . . . . Terminal Hacks 23 | . . . 19 . 4 Record 19 | . . . 19 . . Branch Access Points 1 | . . . . . 1 Zone Layout 3 | . . . . . 3 Fabricator Hacks . | . . . . . . Repair Station Hacks . | . . . . . . Recycling Unit Hacks . | . . . . . . Scanalyzer . | . . . . . . Garrison Access Hacks . | . . . . . . Unauthorized Hacks 2 | . . . . 1 1 Terminals 2 | . . . . 1 1 Botnet 2 | . . . . 1 1 Fabricators . | . . . . . . Repair Stations . | . . . . . . Recycling Units . | . . . . . . Scanalyzers . | . . . . . . Garrison Access . | . . . . . . Data Cores Recovered . | . . . . . . Used . | . . . . . . Hacking Detections 5 | . . . . 1 4 Full Trace Events 3 | . . . . 1 2 Feedback Events 2 | . . . . 1 1 Corruption 2 | . . . . 1 1 Feedback Blocked . | . . . . . . Robot Schematics Acquired . | . . . . . . Robots Built . | . . . . . . Authchips . | . . . . . . Time . | . . . . . . Total Robot Build Rating . | . . . . . . Part Schematics Acquired . | . . . . . . Parts Built . | . . . . . . Authchips . | . . . . . . Time . | . . . . . . Total Part Build Rating . | . . . . . . Parts Repaired . | . . . . . . Time . | . . . . . . Parts Recycled . | . . . . . . Recycled Matter . | . . . . . . Retrieved Matter . | . . . . . . Retrieved Components . | . . . . . . Parts Scanalyzed . | . . . . . . Part Schematics Acquired . | . . . . . . Parts Damaged . | . . . . . . Bothacking | -11 -10 -10 -9 -6 -5 ------------ Run | Yrd Mat Sub Scr Fac Fac Used RIF Installer . | . . . . . . Robots Hacked . | . . . . . . Non-combat . | . . . . . . Combat . | . . . . . . Robot Hacks Applied . | . . . . . . Relay Couplers Released . | . . . . . . Fabnet Peak Effective % . | . . . . . . Robots Rewired . | . . . . . . Allies Hacked . | . . . . . . Hacks Repelled . | . . . . . . Allies | -11 -10 -10 -9 -6 -5 -------- Run | Yrd Mat Sub Scr Fac Fac Total Allies . | . . . . . . Largest Group . | . . . . . . Highest-Rated Group . | . . . . . . Highest-Rated Ally . | . . . . . . Total Orders . | . . . . . . Ally Attacks . | . . . . . . Total Damage . | . . . . . . Kills . | . . . . . . Allies Corrupted . | . . . . . . Allies Melted . | . . . . . . Intel | -11 -10 -10 -9 -6 -5 ------- Run | Yrd Mat Sub Scr Fac Fac Active Infowar (turns) 329 | . . . 64 68 197 Optics 137 | . . . . 31 106 IFF 176 | . . . . 30 146 Decoding 329 | . . . 64 68 197 Robot Analysis Total . | . . . . . . Derelict Logs Recovered 1 | . . 1 . . . Drone Launches . | . . . . . . Drone Recoveries . | . . . . . . Decoded 0b10 Intel 6 | . . . . 2 4 Traps 4 | . . . . 1 3 Emergency Access 2 | . . . . 1 1 Exploration | -11 -10 -10 -9 -6 -5 ------------- Run | Yrd Mat Sub Scr Fac Fac Turns Passed 529 | 16 86 20 102 68 237 Spaces Moved 1118 | 26 88 27 248 178 551 Core 149 | 26 60 . . . 63 Treads . | . . . . . . Legs . | . . . . . . Wheels . | . . . . . . Hover . | . . . . . . Flight 969 | . 28 27 248 178 488 Fastest Speed 32 | 50 40 40 34 34 32 Average Speed 38 | 50 46 40 37 34 38 Slowest Speed 50 | 50 50 40 40 34 50 Overloaded Moves . | . . . . . . Propulsion Burnouts . | . . . . . . Robots Hopped 15 | . 3 . . 2 10 Potential Cave-ins . | . . . . . . Cave-ins Triggered . | . . . . . . Exploration Rate (%) 14 | 4 26 3 29 10 17 Regions Visited 5 Branch Regions 2 Pre-discovered Areas 4 | . . . 4 . . Known Exits Taken 2 | . . . 1 1 . Unknown Exits Taken 3 | 1 1 1 . . . Scrap Searched 1 | . . . 1 . . Spaces Dug . | . . . . . . Terrain Destroyed . | . . . . . . Melee . | . . . . . . Projectile . | . . . . . . AOE . | . . . . . . Terrain Rammed . | . . . . . . Walls Destroyed . | . . . . . . Machines Disabled . | . . . . . . Actions | -11 -10 -10 -9 -6 -5 --------- Run | Yrd Mat Sub Scr Fac Fac Total 1189 | 28 129 35 256 182 559 Wait 52 | . 42 9 . . 1 Move 1085 | 25 82 26 247 173 532 Hop 13 | . 2 . . 2 9 Pick Up 17 | 3 1 . 5 3 5 Fast Attach 4 | . . . . 1 3 Attach 13 | . 2 . 4 2 5 Detach 1 | . . . . 1 . Swap . | . . . . . . Drop 2 | . . . . . 2 Fire 2 | . . . . . 2 Melee . | . . . . . . Ram . | . . . . . . Kick . | . . . . . . Crush . | . . . . . . Escape Stasis . | . . . . . . Rewire . | . . . . . . Trap . | . . . . . . Miscellaneous . | . . . . . . Route ------- -11/Scrapyard -10/Materials -10/Subcaves (discovered 2 exits: Mat / *Scr) -9/Scraptown (discovered 2 exits: *Fac x2) -6/Factory (discovered 4 exits: *Fac x3 / Low) -5/Factory (discovered 4 exits: *Upp x2 / Ext x2) History --------- Turn | Location | Event 3 | -11/Scrapyard | Discovered new exit (range 16) 17 | -11/Scrapyard | Entered Materials 84 | -10/Materials | Core integrity fell below 50% 103 | -10/Materials | Discovered new exit (range 3) 103 | -10/Materials | Entered Subcaves 104 | -10/Subcaves | Approached by a straggling Scientist 105 | -10/Subcaves | Identified exit to Materials 121 | -10/Subcaves | Scientist uncovered a shortcut to Scraptown 123 | -10/Subcaves | Entered Scraptown 146 | -9/Scraptown | Visited UFD Registry 146 | -9/Scraptown | Registered with UFD as "Armortank" 158 | -9/Scraptown | Visited Infowarlord's Domain 180 | -9/Scraptown | Visited DA-N13 Charitable Foundation 181 | -9/Scraptown | Found DCF Scrap (26 items) 196 | -9/Scraptown | Visited Cartography Club 210 | -9/Scraptown | Learned location of Upper Caves (-4) 210 | -9/Scraptown | Learned location of Warlord (-4) 210 | -9/Scraptown | Learned location of Archives (-5) 210 | -9/Scraptown | Learned 8 Materials zone layouts 210 | -9/Scraptown | Learned 12 Materials zone layouts 210 | -9/Scraptown | Learned 12 Research zone layouts 210 | -9/Scraptown | Learned 8 Research zone layouts 210 | -9/Scraptown | Learned 4 Access zone layouts 210 | -9/Scraptown | Learned 4 Mines zone layouts 210 | -9/Scraptown | Learned 8 Access zone layouts 210 | -9/Scraptown | Learned 8 Upper Caves zone layouts 210 | -9/Scraptown | Learned 16 Proximity Caves zone layouts 210 | -9/Scraptown | Learned 24 Proximity Caves zone layouts 210 | -9/Scraptown | Learned location of 3 exits from Factory 210 | -9/Scraptown | Learned location of 2 exits from Lower Caves 210 | -9/Scraptown | Identified exit to Factory 225 | -9/Scraptown | Entered Factory 225 | -6/Factory | Evolved 8 slots: Power x1, Propulsion x4, Utility x3 226 | -6/Factory | Identified exit to Lower Caves 226 | -6/Factory | Identified exit to Factory 251 | -6/Factory | Spotted B-75 Beast 288 | -6/Factory | Discovered exit to Factory (range 13) 293 | -6/Factory | Entered another Factory area 293 | -5/Factory | Evolved 2 slots: Propulsion x1, Utility x1 294 | -5/Factory | Identified exit to Upper Caves 303 | -5/Factory | Build established: Mutant 461 | -5/Factory | Identified exit to Extension 507 | -5/Factory | Spotted B-75 Beast 508 | -5/Factory | Core integrity fell below 50% 522 | -5/Factory | Core integrity fell below 20% 530 | -5/Factory | Destroyed by G-50 Soldier with Heavy Laser Last Messages --------------- 00508_ Acquired 6 matter. 00509_ Penetrated by Slug. 00512_ K-01 Serf cleans the Fusion Modulator. 00514_ Slug penetrates Fusion Modulator. 00514_ Adv. Signal Interpreter destroyed. 00515_ Slug penetrates Fusion Modulator. 00517_ K-01 Serf cleans the Fusion Modulator. 00518_ Penetrated by Slug. 00521_ K-01 Serf destroyed. 00521_ Penetrated by Slug. 00523_ K-01 Serf collects debris. 00525_ Triggered Tesla Bomb Trap. 00525_ A bubble of electromagnetic force engulfs the area. 00525_ K-01 Serf destroyed. 00525_ R-10 Processor collects Corrupted Wheel. 00526_ Acquired 30 matter. 00527_ U-05 Engineer lays Concrete. 00528_ R-10 Processor collects Corrupted Wheel. 00528_ U-05 Engineer lays Concrete. Map ----- +----------------------------------------------------+ | ???????????????????????????????????????? """ ? | | ???????????????????????????????????????? """ " | | ???????????????????????????????????????# = """ " | | ???????????????????????????????????????# | | ???????????????????????????????????????# ! | | ???????????????????????????????????????# | | ????????????????????################+### [ | | ????????????????????# | | ????????????????????# | | ????????????????????# """ """ | | ????????????????????+ """ """ | | ????????????????????# """ """ | | ????????????????????# | | ????????????????????# = """ """ | | ????????????????????# u%############## """ """ | | ????????????????????# ggAs#????????????# """ """ | | ????????????????????# *% s#????????????# | | ????????????????????# = +????????????# """ """ | | ????????????????????# #????????????# """ """ | | ????????????????????# #????????????# """ """ | | ????????????????????# #????????????# | | ????????????????????# #????????????# | | ????????????????????# #????????????# | | ????????????????????# #????????????#####+##### | | ????????????????????# #????????????# # | | ????????????????????# @#????????????#"" # | | ????????????????????# #????????????#"T # | | ????????????????????# #????????????#"" + | | ????????????????????# #????????????# # | | ????????????????????# #????????????# """"" # | | ????????????????????#k #????????????# """"" # | | ????????????????????+ #????????????# """ + | | ??????????????????? # #????????????# = # | | ???????????????????## #????????????# """"" # | | ????????????????????# ?????????????# """"" # | | ???????????????????? ?????????????# """ ! # | | ???????????????????? ?????????????# # | | ??????????????????? ?????????????? # | | ??????????????????? ?????????????# # | | ????????????????????? ?????????????# # | | ???????????????????????###?????????????########### | | ?????????????????????????????????????????????????? | | ?????????????????????????????????????????????????? | | ?????????????????????????????????????????????????? | | ?????????????????????????????????????????????????? | | ?????????????????????????????????????????????????? | | ?????????????????????????????????????????????????? | | ?????????????????????????????????????????????????? | | ?????????????????????????????????????????????????? | | ?????????????????????????????????????????????????? | +----------------------------------------------------+ Best States ------------- Heat Dissipation 40 Energy Generation 15 Energy Capacity 150 Matter Stores 300 Matter Capacity 300 Sight Range 22 Terrain Scan Density 10 Resistance: EM 25 Evasion (%) 63 Item Schematics ----------------- None Robot Schematics ------------------ None Fabricated ------------ Nothing Repaired ---------- Nothing Alien Tech Used ----------------- None Achievements -------------- None Challenges ------------ None Game ------ Seed TargetingAntigravBallwheel Manual? 1 Play Time 00:15:51 Cumulative 118.6 hours Start 2025.08.08 @ 20:17:52 End 2025.08.08 @ 20:31:00 Sessions 1 Manual Loads 0 Difficulty Rogue Special Mode None Game No. 211 Rogue 211 Adventurer 0 Explorer 0 Win Type - Total 1 Types 1/0/0/0/0/0/0/0/0/0 Lore% 69 Gallery% 64 Achievement% 44 Wizard Run 0 Options --------- Layout 1 ASCII 0 Keyboard 0 Movement Numpad Keybinds 0 Fullscreen 1 Font 24/Smallcaps Map View 50x40 Zoom Use 0% Tactical HUD 1 Map Filters NONE Filters NONE Steam 1 RUN: 7b784a84-728d-481d-a989-aa3be8b7f5af